fUSD/lending_fUSD_20250809
["ID","MTS","AMOUNT","RATE_DAILY","PERIOD"]
[378123198,1754739081171,-803.61,0.00024931,2]
[378123199,1754739081181,-400.0,0.00024931,2]
[378123200,1754739081190,-400.0,0.00024931,2]
[378123201,1754739081199,-657.15,0.00024931,2]
[378123202,1754739081209,-400.0,0.00024931,2]
[378123203,1754739081219,-400.39,0.00024931,2]
[378123204,1754739081228,-400.0,0.00024931,2]
[378123205,1754739081237,-400.0,0.00024931,2]
[378123206,1754739081246,-478.45,0.00024931,2]
[378123207,1754739081256,-404.63042321,0.00024931,2]
[378123208,1754739081266,-1232.01,0.00024931,2]
[378123209,1754739081275,-400.0,0.00024931,2]
[378123210,1754739081284,-556.41,0.00024931,2]
[378123211,1754739081294,-400.0,0.00024931,2]
[378123212,1754739081304,-400.0,0.00024931,2]
[378123213,1754739081313,-400.0,0.00024931,2]
[378123214,1754739081322,-561.31,0.00024931,2]
[378123215,1754739081331,-400.0,0.00024931,2]
[378123216,1754739081340,-550.47,0.00024931,2]
[378123217,1754739081349,-403.55041539,0.00024931,2]
[378123218,1754739081358,-400.0,0.00024931,2]
[378123219,1754739081367,-400.0,0.00024931,2]
[378123220,1754739081377,-400.0,0.00024931,2]
[378123221,1754739081386,-475.87,0.00024931,2]
[378123222,1754739081396,-1065.06,0.00024931,2]
[378123223,1754739081406,-400.0,0.00024931,2]
[378123224,1754739081415,-6326.75,0.00024931,2]
[378123225,1754739081424,-400.0,0.00024931,2]
[378123226,1754739081434,-400.0,0.00024931,2]
[378123227,1754739081443,-400.0,0.00024931,2]
[378123228,1754739081453,-461.47,0.00024931,2]
[378123229,1754739081462,-400.0,0.00024931,2]
[378123230,1754739081471,-400.0,0.00024931,2]
[378123231,1754739081480,-402.30470936,0.00024931,2]
[378123232,1754739081489,-400.0,0.00024931,2]
[378123233,1754739081498,-733.63,0.00024931,2]
[378123234,1754739081508,-771.94,0.00024931,2]
[378123235,1754739081517,-779.15,0.00024931,2]
[378123236,1754739081527,-400.0,0.00024931,2]
[378123237,1754739081536,-2925.18,0.00024931,2]
[378123238,1754739081545,-400.0,0.00024931,2]
[378123239,1754739081554,-400.0,0.00024931,2]
[378123240,1754739081564,-400.0,0.00024931,2]
[378123241,1754739081573,-620.25,0.00024931,2]
[378123242,1754739081582,-400.0,0.00024931,2]
[378123243,1754739081592,-400.0,0.00024931,2]
[378123244,1754739081601,-400.0,0.00024931,2]
[378123245,1754739081610,-400.0,0.00024931,2]
[378123246,1754739081619,-1540.79,0.00024931,2]
[378123247,1754739081629,-1014.71,0.00024931,2]
[378123248,1754739081638,-688.52,0.00024931,2]
[378123249,1754739081647,-400.0,0.00024931,2]
[378123250,1754739081656,-400.0,0.00024931,2]
[378123251,1754739081666,-400.0,0.00024931,2]
[378123252,1754739081675,-402.10881613,0.00024931,2]
[378123253,1754739081684,-400.0,0.00024931,2]
[378123254,1754739081693,-400.0,0.00024931,2]
[378123255,1754739081703,-691.95,0.00024931,2]
[378123256,1754739081712,-400.0,0.00024931,2]
[378123257,1754739081722,-617.97,0.00024931,2]
[378123258,1754739081731,-400.0,0.00024931,2]
[378123259,1754739081740,-400.0,0.00024931,2]
[378123260,1754739081749,-626.4,0.00024931,2]
[378123261,1754739081759,-400.0,0.00024931,2]
[378123262,1754739081769,-400.0,0.00024931,2]
[378123263,1754739081779,-400.0,0.00024931,2]
[378123264,1754739081788,-308.70842342,0.00024931,2]
[378123265,1754739081797,-400.0,0.00024931,2]
[378123266,1754739081806,-525.8,0.00024931,2]
[378123267,1754739081816,-528.12,0.00024931,2]
[378123268,1754739081825,-320.56172943,0.00024931,2]
[378123269,1754739081834,-1644.84,0.00024931,2]
[378123270,1754739081843,-400.0,0.00024931,2]
[378123271,1754739081852,-400.0,0.00024931,2]
[378123272,1754739081862,-674.38,0.00024931,2]
[378123273,1754739081872,-863.97,0.00024931,2]
[378123274,1754739081881,-401.1556917,0.00024931,2]
[378123275,1754739081891,-400.0,0.00024931,2]
[378123276,1754739081900,-503.45,0.00024931,2]
[378123277,1754739081909,-529.26431801,0.00024931,2]
[378123278,1754739081919,-1178.516227,0.00024931,2]
[378123279,1754739081928,-3227.85,0.00024931,2]
[378123280,1754739081938,-401.94721187,0.00024931,2]
[378123281,1754739081949,-400.0,0.00024931,2]
[378123282,1754739081960,-400.0,0.00024931,2]
[378123283,1754739081969,-400.0,0.00024931,2]
[378123284,1754739081979,-400.0,0.00024931,2]
[378123285,1754739081988,-721.38,0.00024931,2]
[378123286,1754739081997,-400.0,0.00024931,2]
[378123287,1754739082007,-400.0,0.00024931,2]
[378123288,1754739082016,-400.0,0.00024931,2]
[378123289,1754739082027,-497.52,0.00024931,2]
[378123290,1754739082036,-400.0,0.00024931,2]
[378123291,1754739082046,-400.0,0.00024931,2]
[378123292,1754739082056,-458.1,0.00024931,2]
[378123293,1754739082066,-400.0,0.00024931,2]
[378123294,1754739082076,-956.09,0.00024931,2]
[378123295,1754739082086,-400.0,0.00024931,2]
[378123296,1754739082095,-400.0,0.00024931,2]
[378123297,1754739082104,-818.35,0.00024931,2]
[378123298,1754739082113,-440.72,0.00024931,2]
[378123299,1754739082123,-846.32,0.00024931,2]
[378123300,1754739082307,-410.45,0.00024931,2]
[378123301,1754739082318,-601.65,0.00024931,2]
[378123302,1754739082327,-908.36,0.00024931,2]
[378123303,1754739082337,-400.0,0.00024931,2]
[378123304,1754739082346,-400.0,0.00024931,2]
[378123305,1754739082355,-400.0,0.00024931,2]
[378123306,1754739082364,-2869.94,0.00024931,2]
[378123307,1754739082373,-932.28,0.00024931,2]
[378123308,1754739082382,-400.0,0.00024931,2]
[378123309,1754739082392,-400.0,0.00024931,2]
[378123310,1754739082401,-400.0,0.00024931,2]
[378123311,1754739082410,-527.73,0.00024931,2]
[378123312,1754739082419,-400.0,0.00024931,2]
[378123313,1754739082428,-400.0,0.00024931,2]
[378123314,1754739082437,-693.47,0.00024931,2]
[378123315,1754739082446,-798.53,0.00024931,2]
[378123316,1754739082455,-400.0,0.00024931,2]
[378123317,1754739082464,-594.67,0.00024931,2]
[378123318,1754739082474,-670.7,0.00024931,2]
[378123319,1754739082483,-952.985602,0.00024931,7]
[378123320,1754739082493,-952.985602,0.00024931,7]
[378123321,1754739082502,-400.0,0.00024931,2]
[378123322,1754739082511,-400.0,0.00024931,2]
[378123323,1754739082521,-952.985602,0.00024931,7]
[378123324,1754739082530,-400.0,0.00024931,2]
[378123325,1754739082539,-400.0,0.00024931,2]
[378123326,1754739082549,-892.34,0.00024931,2]
[378123327,1754739082558,-400.0,0.00024931,2]
[378123328,1754739082568,-400.0,0.00024931,2]
[378123329,1754739082578,-400.0,0.00024931,2]
[378123330,1754739082588,-952.985602,0.00024931,7]
[378123331,1754739082597,-952.985602,0.00024931,7]
[378123332,1754739082607,-952.985604,0.00024931,7]
[378123333,1754739082617,-400.0,0.00024931,2]
[378123334,1754739082627,-400.0,0.00024931,2]
[378123335,1754739082636,-904.42,0.00024931,2]
[378123336,1754739082646,-570.25,0.00024931,2]
[378123337,1754739082656,-400.0,0.00024931,2]
[378123338,1754739082666,-824.31,0.00024931,2]
[378123339,1754739082676,-400.0,0.00024931,2]
[378123340,1754739082690,-617.45,0.00024931,2]
[378123341,1754739082701,-404.8,0.00024931,2]
[378123342,1754739082712,-400.0,0.00024931,2]
[378123343,1754739082721,-400.0,0.00024931,2]
[378123344,1754739082731,-802.11,0.00024931,2]
[378123345,1754739082741,-400.0,0.00024931,2]
[378123346,1754739082752,-503.92,0.00024931,2]
[378123347,1754739082762,-1140.45,0.00024931,2]
[378123348,1754739082771,-1431.79,0.00024931,2]
[378123349,1754739082780,-400.0,0.00024931,2]
[378123350,1754739082790,-400.0,0.00024931,2]
[378123351,1754739082799,-450.79,0.00024931,2]
[378123352,1754739082808,-400.0,0.00024931,2]
[378123353,1754739082817,-798.89,0.00024931,2]
[378123354,1754739082827,-400.0,0.00024931,2]
[378123355,1754739082837,-400.0,0.00024931,2]
[378123356,1754739082846,-400.0,0.00024931,2]
[378123357,1754739082855,-939.53,0.00024931,2]
[378123358,1754739082864,-400.0,0.00024931,2]
[378123359,1754739082873,-853.78,0.00024931,2]
[378123360,1754739082885,-1033.62,0.00024931,2]
[378123361,1754739082895,-1000.0,0.00024931,7]
[378123362,1754739082905,-400.0,0.00024931,2]
[378123363,1754739082914,-400.0,0.00024931,2]
[378123364,1754739082925,-816.42,0.00024931,2]
[378123365,1754739082935,-400.0,0.00024931,2]
[378123366,1754739082944,-400.0,0.00024931,2]
[378123367,1754739082957,-151.0,0.00024931,7]
[378123368,1754739082966,-535.84,0.00024931,2]
[378123369,1754739082975,-151.0,0.00024931,7]
[378123370,1754739082984,-400.0,0.00024931,2]
[378123371,1754739082994,-400.0,0.00024931,2]
[378123372,1754739083003,-1185.36,0.00024931,2]
[378123373,1754739083013,-400.0,0.00024931,2]
[378123374,1754739083022,-616.28,0.00024931,2]
[378123375,1754739083033,-400.0,0.00024931,2]
[378123376,1754739083043,-1172.65,0.00024931,2]
[378123377,1754739083052,-400.0,0.00024931,2]
[378123378,1754739083062,-400.0,0.00024931,2]
[378123379,1754739083071,-400.0,0.00024931,2]
[378123380,1754739083080,-876.19,0.00024931,2]
[378123381,1754739083090,-400.0,0.00024931,2]
[378123382,1754739083100,-400.0,0.00024931,2]
[378123383,1754739083109,-600.86,0.00024931,2]
[378123384,1754739083119,-400.0,0.00024931,2]
[378123385,1754739083130,-677.48,0.00024931,2]
[378123386,1754739083140,-400.0,0.00024931,2]
[378123387,1754739083150,-161.32,0.00024931,2]
[378123388,1754739083159,-1914.58,0.00024931,2]
[378123389,1754739083169,-484.89,0.00024931,2]
[378123390,1754739083178,-400.0,0.00024931,2]
[378123391,1754739083187,-400.0,0.00024931,2]
[378123392,1754739083196,-562.09,0.00024931,2]
[378123393,1754739083206,-968.27,0.00024931,2]
[378123394,1754739083217,-400.0,0.00024931,2]
[378123395,1754739083227,-639.35,0.00024931,2]
[378123396,1754739083238,-400.0,0.00024931,2]
[378123397,1754739083249,-400.0,0.00024931,2]
[378123398,1754739083258,-400.0,0.00024931,2]
[378123399,1754739083267,-581.48,0.00024931,2]
[378123400,1754739083278,-400.0,0.00024931,2]
[378123401,1754739083288,-1089.02,0.00024931,2]
[378123402,1754739083298,-400.0,0.00024931,2]
[378123403,1754739083308,-400.0,0.00024931,2]
[378123404,1754739083318,-652.46,0.00024931,2]
[378123405,1754739083328,-400.0,0.00024931,2]
[378123406,1754739083339,-400.0,0.00024931,2]
[378123407,1754739083348,-1117.59,0.00024931,2]
[378123408,1754739083357,-572.31,0.00024931,2]
[378123409,1754739083366,-400.0,0.00024931,2]
[378123410,1754739083376,-400.0,0.00024931,2]
[378123411,1754739083385,-400.0,0.00024931,2]
[378123412,1754739083394,-400.0,0.00024931,2]
[378123413,1754739083403,-460.0,0.00024931,2]
[378123414,1754739083413,-1148.91,0.00024931,2]
[378123415,1754739083423,-516.33,0.00024931,2]
[378123416,1754739083434,-400.0,0.00024931,2]
[378123417,1754739083444,-400.0,0.00024931,2]
[378123418,1754739083455,-456.2,0.00024931,2]
[378123419,1754739083464,-400.0,0.00024931,2]
[378123420,1754739083474,-697.94,0.00024931,2]
[378123421,1754739083483,-454.77,0.00024931,2]
[378123422,1754739083492,-1007.07,0.00024931,2]
[378123423,1754739083502,-400.0,0.00024931,2]
[378123424,1754739083511,-519.35,0.00024931,2]
[378123425,1754739083520,-400.0,0.00024931,2]
[378123426,1754739083530,-1241.46,0.00024931,2]
[378123427,1754739083539,-400.0,0.00024931,2]
[378123428,1754739083548,-400.0,0.00024931,2]
[378123429,1754739083557,-400.0,0.00024931,2]
[378123430,1754739083567,-948.49,0.00024931,2]
[378123431,1754739083576,-482.0,0.00024931,2]
[378123432,1754739083585,-400.0,0.00024931,2]
[378123433,1754739083594,-549.19,0.00024931,2]
[378123434,1754739083604,-400.0,0.00024931,2]
[378123435,1754739083614,-400.0,0.00024931,2]
[378123436,1754739083623,-1049.29,0.00024931,2]
[378123437,1754739083633,-400.0,0.00024931,2]
[378123438,1754739083642,-400.0,0.00024931,2]
[378123439,1754739083651,-400.0,0.00024931,2]
[378123440,1754739083660,-400.0,0.00024931,2]
[378123441,1754739083669,-415.86,0.00024931,2]
[378123442,1754739083679,-400.0,0.00024931,2]
[378123443,1754739083688,-400.0,0.00024931,2]
[378123444,1754739083698,-400.0,0.00024931,2]
[378123445,1754739083707,-1206.3,0.00024931,2]
[378123446,1754739083716,-400.0,0.00024931,2]
[378123447,1754739083726,-400.0,0.00024931,2]
[378123448,1754739083735,-661.3,0.00024931,2]
[378123449,1754739083744,-566.03,0.00024931,2]
[378123450,1754739083754,-624.9,0.00024931,2]
[378123451,1754739083763,-840.86,0.00024931,2]
[378123452,1754739083772,-756.03,0.00024931,2]
[378123453,1754739083781,-400.0,0.00024931,2]
[378123454,1754739083790,-400.0,0.00024931,2]
[378123455,1754739083800,-400.0,0.00024931,2]
[378123456,1754739083810,-400.0,0.00024931,2]
[378123457,1754739083819,-400.0,0.00024931,2]
[378123458,1754739083829,-561.19,0.00024931,2]
[378123459,1754739083838,-400.0,0.00024931,2]
[378123460,1754739083848,-3308.44,0.00024931,2]
[378123461,1754739083857,-400.0,0.00024931,2]
[378123462,1754739083867,-503.08,0.00024931,2]
[378123463,1754739083876,-400.0,0.00024931,2]
[378123464,1754739083885,-400.0,0.00024931,2]
[378123465,1754739083894,-400.0,0.00024931,2]
[378123466,1754739083903,-400.0,0.00024931,2]
[378123467,1754739083913,-691.84,0.00024931,2]
[378123468,1754739083923,-771.46,0.00024931,2]
[378123469,1754739083932,-1262.15,0.00024931,2]
[378123470,1754739083941,-400.0,0.00024931,2]
[378123471,1754739083952,-400.0,0.00024931,2]
[378123472,1754739083962,-400.0,0.00024931,2]
[378123473,1754739083971,-400.0,0.00024931,2]
[378123474,1754739083980,-400.0,0.00024931,2]
[378123475,1754739083990,-400.0,0.00024931,2]
[378123476,1754739083999,-1236.494303,0.00024931,7]
[378123477,1754739084009,-400.0,0.00024931,2]
[378123478,1754739084018,-1236.494303,0.00024931,7]
[378123479,1754739084029,-580.59,0.00024931,2]
[378123480,1754739084038,-761.23,0.00024931,2]
[378123481,1754739084048,-400.0,0.00024931,2]
[378123482,1754739084058,-400.0,0.00024931,2]
[378123483,1754739084067,-821.84,0.00024931,2]
[378123484,1754739084076,-401.85640813,0.00024931,2]
[378123485,1754739084086,-400.0,0.00024931,2]
[378123486,1754739084096,-400.0,0.00024931,2]
[378123487,1754739084105,-1236.494303,0.00024931,7]
[378123488,1754739084114,-1803.66,0.00024931,2]
[378123489,1754739084123,-400.0,0.00024931,2]
[378123490,1754739084133,-1236.494301,0.00024931,7]
[378123491,1754739084142,-400.0,0.00024931,2]
[378123492,1754739084152,-515.54,0.00024931,2]
[378123493,1754739084161,-1029.63,0.00024931,2]
[378123494,1754739084171,-400.0,0.00024931,2]
[378123495,1754739084180,-400.0,0.00024931,2]
[378123496,1754739084189,-400.0,0.00024931,2]
[378123497,1754739084198,-400.0,0.00024931,2]
[378123498,1754739084208,-168.51,0.00024931,2]
[378123499,1754739084217,-400.0,0.00024931,2]
[378123500,1754739084227,-400.0,0.00024931,2]
[378123501,1754739084236,-400.0,0.00024931,2]
[378123502,1754739084246,-1318.37,0.00024931,2]
[378123503,1754739084257,-400.0,0.00024931,2]
[378123504,1754739084267,-400.0,0.00024931,2]
[378123505,1754739084276,-400.0,0.00024931,2]
[378123506,1754739084286,-400.0,0.00024931,2]
[378123507,1754739084295,-1122.9,0.00024931,2]
[378123508,1754739084305,-400.0,0.00024931,2]
[378123509,1754739084314,-400.0,0.00024931,2]
[378123510,1754739084323,-400.0,0.00024931,2]
[378123511,1754739084332,-403.21906295,0.00024931,2]
[378123512,1754739084342,-547.9,0.00024931,2]
[378123513,1754739084351,-400.0,0.00024931,2]
[378123514,1754739084361,-400.0,0.00024931,2]
[378123515,1754739084370,-734.33,0.00024931,2]
[378123516,1754739084380,-566.63,0.00024931,2]
[378123517,1754739084389,-944.11,0.00024931,2]
[378123518,1754739084399,-400.0,0.00024931,2]
[378123519,1754739084408,-481.43093451,0.00024931,2]
[378123520,1754739084417,-400.0,0.00024931,2]
[378123521,1754739084426,-434.29,0.00024931,2]
[378123522,1754739084436,-400.0,0.00024931,2]
[378123523,1754739084445,-400.0,0.00024931,2]
[378123524,1754739084454,-400.0,0.00024931,2]
[378123525,1754739084464,-400.0,0.00024931,2]
[378123526,1754739084473,-400.0,0.00024931,2]
[378123527,1754739084482,-400.0,0.00024931,2]
[378123528,1754739084491,-807.3,0.00024931,2]
[378123529,1754739084501,-1190.09,0.00024931,2]
[378123530,1754739084510,-401.07973259,0.00024931,2]
[378123531,1754739084519,-400.0,0.00024931,2]
[378123532,1754739084528,-400.0,0.00024931,2]
[378123533,1754739084538,-400.0,0.00024931,2]
[378123534,1754739084547,-400.0,0.00024931,2]
[378123535,1754739084556,-1207.89,0.00024931,2]
[378123536,1754739084565,-400.0,0.00024931,2]
[378123537,1754739084575,-400.0,0.00024931,2]
[378123538,1754739084584,-420.81,0.00024931,2]
[378123539,1754739084594,-400.74329406,0.00024931,2]
[378123540,1754739084603,-617.23,0.00024931,2]
[378123541,1754739084612,-400.0,0.00024931,2]
[378123542,1754739084621,-1303.27,0.00024931,2]
[378123543,1754739084631,-400.0,0.00024931,2]
[378123544,1754739084640,-400.0,0.00024931,2]
[378123545,1754739084649,-517.44603,0.00024931,2]
[378123546,1754739084658,-400.0,0.00024931,2]
[378123547,1754739084668,-400.0,0.00024931,2]
[378123548,1754739084677,-400.0,0.00024931,2]
[378123549,1754739084686,-400.0,0.00024931,2]
[378123550,1754739084695,-400.0,0.00024931,2]
[378123551,1754739084704,-1069.66,0.00024931,2]
[378123552,1754739084714,-400.0,0.00024931,2]
[378123553,1754739084723,-1540.56,0.00024931,2]
[378123554,1754739084732,-400.0,0.00024931,2]
[378123555,1754739084742,-400.0,0.00024931,2]
[378123556,1754739084751,-400.0,0.00024931,2]
[378123557,1754739084760,-400.0,0.00024931,2]
[378123558,1754739084770,-400.0,0.00024931,2]
[378123559,1754739084779,-579.42,0.00024931,2]
[378123560,1754739084789,-1413.97,0.00024931,2]
[378123561,1754739084798,-860.61,0.00024931,2]
[378123562,1754739084808,-400.0,0.00024931,2]
[378123563,1754739084817,-400.0,0.00024931,2]
[378123564,1754739084826,-400.0,0.00024931,2]
[378123565,1754739084835,-401.22079007,0.00024931,2]
[378123566,1754739084844,-400.0,0.00024931,2]
[378123567,1754739084854,-400.0,0.00024931,2]
[378123568,1754739084864,-400.0,0.00024931,2]
[378123569,1754739084873,-400.0,0.00024931,2]
[378123570,1754739085034,-400.0,0.00024931,2]
[378123571,1754739085061,-658.59,0.00024931,2]
[378123572,1754739085070,-765.61,0.00024931,2]
[378123573,1754739085080,-400.0,0.00024931,2]
[378123574,1754739085089,-531.55,0.00024931,2]
[378123575,1754739085098,-400.0,0.00024931,2]
[378123576,1754739085107,-400.0,0.00024931,2]
[378123577,1754739085117,-400.0,0.00024931,2]
[378123578,1754739085126,-400.0,0.00024931,2]
[378123579,1754739085135,-812.74,0.00024931,2]
[378123580,1754739085145,-400.0,0.00024931,2]
[378123581,1754739085155,-400.0,0.00024931,2]
[378123582,1754739085164,-400.0,0.00024931,2]
[378123583,1754739085174,-400.0,0.00024931,2]
[378123584,1754739085183,-1000.0,0.00024931,2]
[378123585,1754739085194,-400.0,0.00024931,2]
[378123586,1754739085204,-400.0,0.00024931,2]
[378123587,1754739085213,-400.0,0.00024931,2]
[378123588,1754739085224,-758.15,0.00024931,2]
[378123589,1754739085235,-648.1,0.00024931,2]
[378123590,1754739085245,-400.4282916,0.00024931,2]
[378123591,1754739085254,-714.88,0.00024931,2]
[378123592,1754739085264,-400.0,0.00024931,2]
[378123593,1754739085273,-736.24,0.00024931,2]
[378123594,1754739085282,-400.0,0.00024931,2]
[378123595,1754739085291,-158.46,0.00024931,2]
[378123596,1754739085301,-400.0,0.00024931,2]
[378123597,1754739085311,-400.0,0.00024931,2]
[378123598,1754739085320,-651.97,0.00024931,2]
[378123599,1754739085330,-404.60920317,0.00024931,2]
[378123600,1754739085339,-400.0,0.00024931,2]
[378123601,1754739085349,-597.51,0.00024931,2]
[378123602,1754739085359,-400.0,0.00024931,2]
[378123603,1754739085368,-405.05196083,0.00024931,2]
[378123604,1754739085377,-400.0,0.00024931,2]
[378123605,1754739085386,-400.0,0.00024931,2]
[378123606,1754739085396,-1059.33,0.00024931,2]
[378123607,1754739085405,-400.0,0.00024931,2]
[378123608,1754739085415,-400.0,0.00024931,2]
[378123609,1754739085424,-462.18387403,0.00024931,2]
[378123610,1754739085434,-400.0,0.00024931,2]
[378123611,1754739085444,-400.0,0.00024931,2]
[378123612,1754739085453,-400.0,0.00024931,2]
[378123613,1754739085462,-4328.0,0.00024931,2]
[378123614,1754739085472,-539.16,0.00024931,2]
[378123615,1754739085482,-460.05,0.00024931,2]
[378123616,1754739085491,-400.0,0.00024931,2]
[378123617,1754739085501,-400.0,0.00024931,2]
[378123618,1754739085511,-400.0,0.00024931,2]
[378123619,1754739085520,-400.0,0.00024931,2]
[378123620,1754739085530,-654.65,0.00024931,2]
[378123621,1754739085540,-474.07,0.00024931,2]
[378123622,1754739085550,-875.87,0.00024931,2]
[378123623,1754739085559,-1135.86,0.00024931,2]
[378123624,1754739085568,-400.0,0.00024931,2]
[378123625,1754739085577,-400.0,0.00024931,2]
[378123626,1754739085586,-400.0,0.00024931,2]
[378123627,1754739085595,-2528.89,0.00024931,2]
[378123628,1754739085605,-400.0,0.00024931,2]
[378123629,1754739085614,-400.0,0.00024931,2]
[378123630,1754739085623,-400.0,0.00024931,2]
[378123631,1754739085633,-400.0,0.00024931,2]
[378123632,1754739085644,-400.0,0.00024931,2]
[378123633,1754739085654,-400.0,0.00024931,2]
[378123634,1754739085664,-400.0,0.00024931,2]
[378123635,1754739085674,-268.27,0.00024931,2]
[378123636,1754739085684,-500.0,0.00024931,2]
[378123637,1754739085694,-150.0,0.00024932,2]
[378123638,1754739085706,-150.0,0.00024932,2]
[378123639,1754739085715,-150.0,0.00024932,2]
[378123640,1754739085725,-151.0,0.00024932,7]
[378123641,1754739085734,-151.0,0.00024932,7]
[378123642,1754739085743,-150.0,0.00024973,2]
[378123643,1754739085752,-500.0,0.00024988,2]
[378123644,1754739085762,-500.0,0.00024988,2]
[378123645,1754739085771,-500.0,0.00024988,2]
[378123646,1754739085781,-197.757804,0.00024988,7]
[378123647,1754739085791,-160.0,0.00025,15]
[378123648,1754739085802,-7273.12520355,0.00025,2]
[378123649,1754739085811,-738.68530175,0.00025,60]
[378123650,1754739085821,-232.1,0.00025,2]
[378123651,1754739085830,-151.0,0.00025,7]
[378123652,1754739085839,-308.79,0.00025,2]
[378123653,1754739085849,-4000.0,0.00025,4]
[378123654,1754739085858,-1000.0,0.00025,2]
[378123655,1754739085868,-4174.63827699,0.00025029,2]
[378123656,1754739085877,-151.0,0.0002507,7]
[378123657,1754739085887,-151.0,0.0002507,7]
[378123658,1754739085896,-151.0,0.0002507,7]
[378123659,1754739085905,-151.0,0.00025071,7]
[378123660,1754739085914,-221.0,0.0002509,2]
[378123661,1754739085924,-1148.9,0.00025136,2]
[378123662,1754739085933,-6071.0,0.00025136,2]
[378123663,1754739085942,-1250.0,0.00025136,2]
[378123664,1754739085954,-3365.0,0.00025136,2]
[378123665,1754739085963,-810.0,0.00025136,2]
[378123666,1754739085972,-151.0,0.00025187,7]
[378123667,1754739085982,-109894.3063625,0.00025188,2]
[378123668,1754739085991,-10828.91,0.000252,7]
[378123669,1754739086000,-698.77,0.000252,7]
[378123670,1754739086010,-2165.28,0.000252,7]
[378123671,1754739086019,-373.29,0.000252,7]
[378123672,1754739086030,-541.32,0.000252,7]
[378123673,1754739086040,-666.0,0.00025204,2]
[378123674,1754739086049,-172.71721845,0.00025205,7]
[378123675,1754739086058,-151.0,0.00025205,7]
[378123676,1754739086067,-151.0,0.00025205,7]
[378123677,1754739086076,-151.0,0.00025205,7]
[378123678,1754739086086,-151.0,0.00025205,7]
[378123679,1754739086095,-247.249319,0.00025205,7]
[378123680,1754739086104,-151.0,0.00025205,7]
[378123681,1754739086113,-151.0,0.00025205,7]
[378123682,1754739086122,-151.0,0.00025205,7]
[378123683,1754739086132,-151.0,0.00025205,7]
[378123684,1754739086141,-2523.950152,0.00025205,2]
[378123685,1754739086151,-2371.007827,0.00025205,2]
[378123686,1754739086160,-190.749343,0.00025205,2]
[378123687,1754739086170,-152.78879,0.00025205,2]
[378123688,1754739086179,-400.0,0.00025205,2]
[378123689,1754739086189,-184.386946,0.00025205,7]
[378123690,1754739086198,-400.0,0.00025205,2]
[378123691,1754739086207,-400.0,0.00025205,2]
[378123692,1754739086217,-235.573636,0.00025205,7]
[378123693,1754739086226,-235.573636,0.00025205,7]
[378123694,1754739086235,-400.0,0.00025205,2]
[378123695,1754739086245,-235.573636,0.00025205,7]
[378123696,1754739086254,-235.573629,0.00025205,7]
[378123697,1754739086263,-400.0,0.00025205,2]